fUSD/lending_fUSD_20240719
["ID","MTS","AMOUNT","RATE_DAILY","PERIOD"]
[332676325,1721423446908,-151.0,0.00030979,7]
[332676326,1721423446919,-152.484674,0.00030979,7]
[332676327,1721423446929,-151.0,0.00030979,7]
[332676328,1721423446939,-151.0,0.00030979,7]
[332676329,1721423446948,-160.581217,0.00030979,7]
[332676330,1721423446957,-151.0,0.00030979,7]
[332676331,1721423446968,-151.0,0.00030979,7]
[332676332,1721423446978,-151.0,0.00030979,7]
[332676333,1721423446988,-151.0,0.00030979,7]
[332676334,1721423446997,-151.0,0.00030979,7]
[332676335,1721423447008,-151.0,0.00030979,7]
[332676337,1721423447019,-151.0,0.00030979,7]
[332676339,1721423447028,-151.0,0.00030979,7]
[332676341,1721423447038,-151.0,0.00030979,7]
[332676343,1721423447048,-151.0,0.00030979,7]
[332676345,1721423447059,-151.0,0.00030979,7]
[332676347,1721423447070,-151.0,0.00030979,7]
[332676349,1721423447079,-151.0,0.00030979,7]
[332676351,1721423447088,-151.0,0.00030979,7]
[332676353,1721423447097,-300.0,0.00030999,10]
[332676354,1721423447106,-300.0,0.00030999,10]
[332676356,1721423447116,-300.0,0.00030999,10]
[332676359,1721423447125,-69867.17031736,0.00031,11]
[332676361,1721423447134,-618.55621231,0.00031,2]
[332676363,1721423447144,-353221.47716642,0.00031,10]
[332676470,1721424330015,28862.77701311,0.000118,2]
[332676531,1721424632894,-600.30000237,0.00013,2]
[332676532,1721424632903,-3077.33409396,0.0001305,2]
[332676533,1721424632914,-20921.31209679,0.00013297,2]
[332676534,1721424632924,-9857.10795239,0.0001358,2]
[332676535,1721424632933,-593.122,0.00013598,2]
[332676536,1721424632943,-191.15632673,0.00013698,2]
[332676537,1721424632953,-286.35417332,0.00013698,2]
[332676538,1721424632963,-203.00895162,0.00013699,2]
[332676539,1721424632973,-155.0,0.00013699,2]
[332676540,1721424632983,-298.34159748,0.00013789,2]
[332676541,1721424632992,-223.85811507,0.00013789,2]
[332676542,1721424633002,-367.23313419,0.00014086,2]
[332676543,1721424633012,-294.02179628,0.00014105,2]
[332676544,1721424633021,-371.26695724,0.00018,2]
[332676545,1721424633032,-227.43774807,0.00018176,2]
[332676546,1721424633041,-150.99,0.00019452,2]
[332676547,1721424633051,-500.0,0.0002232,2]
[332676548,1721424633060,-200.0,0.0002232,2]
[332676549,1721424633070,-912.26349556,0.00025,2]
[332676550,1721424633079,-280.02,0.00025505,2]
[332676551,1721424633089,-250.0,0.00025805,2]
[332676552,1721424633099,-289.75,0.00026087,2]
[332676553,1721424633108,-250.0,0.00026225,2]
[332676554,1721424633118,-328.73581601,0.00026686,2]
[332676555,1721424633128,-155.0,0.00026828,2]
[332676556,1721424633137,-401.28601091,0.00026967,2]
[332676557,1721424633146,-305.68557387,0.00026967,2]
[332676558,1721424633156,-211.89,0.00027078,2]
[332676559,1721424633166,-1000.0,0.00027747,120]
[332676560,1721424633176,-808.0,0.0002792,2]
[332676561,1721424633185,-679.42,0.0002792,2]
[332676562,1721424633195,-514.064,0.0002792,2]
[332676563,1721424633205,-304.447,0.0002792,2]
[332676564,1721424633214,-1063.865,0.0002792,2]
[332676565,1721424633224,-239.002,0.0002792,2]
[332676566,1721424633234,-247.34,0.00028011,2]
[332676567,1721424633244,-315.57,0.0002812,2]
[332676568,1721424633253,-8892.79,0.00028239,2]
[332676569,1721424633267,-150.47097929,0.00028249,2]
[332676570,1721424633276,-289.75,0.00028351,2]
[332676571,1721424633286,-167.0,0.00028902,2]
[332676572,1721424633295,-9618.58646287,0.00029097,2]
[332676573,1721424633305,-9618.58646287,0.00029097,2]
[332676574,1721424633315,-157.39515503,0.0002934,2]
[332676575,1721424633324,-1250.0,0.000299,5]
[332676576,1721424633336,-271.13,0.0002999,10]
[332676578,1721424633348,-103055.38352,0.0003,2]
[332676580,1721424633358,-2251.0,0.0003,3]
[332676581,1721424633367,-1755.7855656,0.000301,15]
[332676583,1721424633378,-700.0,0.000303,11]
[332676585,1721424633388,-1400.0,0.000304,11]
[332676588,1721424633398,-2100.0,0.000305,11]
[332676591,1721424633408,-2800.0,0.000306,11]
[332676594,1721424633417,-289.75,0.00030615,2]
[332676596,1721424633426,-21249.0,0.0003069,2]
[332676598,1721424633435,-3600.0,0.000307,11]
[332676600,1721424633444,-1755.78556557,0.00030732,15]
[332676602,1721424633453,-150.0,0.00030795,2]
[332676604,1721424633463,-150.0,0.00030795,2]
[332676606,1721424633471,-150.0,0.00030795,2]
[332676608,1721424633484,-150.0,0.00030795,2]
[332676609,1721424633493,-700.0,0.000308,11]
[332676611,1721424633504,-4596.3769,0.0003089,2]
[332676613,1721424633514,-198.09094505,0.00030899,2]
[332676614,1721424633523,-321.30114503,0.00030899,2]
[332676615,1721424633532,-162.78248963,0.000309,2]
[332676616,1721424633542,-181.95536794,0.000309,2]
[332676617,1721424633551,-166.66666666,0.000309,2]
[332676618,1721424633560,-316.05201467,0.000309,2]
[332676619,1721424633569,-700.0,0.000309,11]
[332676620,1721424633579,-273.31517068,0.000309,2]
[332676621,1721424633588,-1250.0,0.000309,5]
[332676622,1721424633598,-204.23794938,0.000309,2]
[332676623,1721424633607,-600.0,0.00030948,10]
[332676624,1721424633616,-256478.325989,0.0003099,5]
[332676625,1721424633626,-254.4478541,0.0003099,2]
[332676626,1721424633636,-254.4478541,0.0003099,2]
[332676627,1721424633645,-254.4478541,0.0003099,2]
[332676628,1721424633654,-150.01,0.00030999,2]
[332676629,1721424633664,-4868.46770454,0.00030999,2]
[332676630,1721424633673,-243.52987327,0.00030999,2]
[332676631,1721424633682,-500.0,0.00030999,2]
[332676632,1721424633692,-500.0,0.00030999,2]
[332676633,1721424633702,-441.29285453,0.00030999,2]
[332676634,1721424633711,-500.0,0.00030999,2]
[332676635,1721424633720,-398.72797041,0.00030999,2]
[332676636,1721424633730,-150.0,0.00030999,2]
[332676637,1721424633739,-300.0,0.00030999,10]
[332676638,1721424633748,-300.0,0.00030999,10]
[332676639,1721424633758,-300.0,0.00030999,10]
[332676640,1721424633767,-292.0,0.00031,5]
[332676641,1721424633777,-23809.51301076,0.00031,10]
[332676642,1721424633812,-1608.41210965,0.00031,10]
[332676643,1721424633827,-3244.55441955,0.00031,10]
[332676644,1721424633919,-0.91735392,0.00031,10]
[332676645,1721424633930,-67345.50726496,0.00031,10]
[332676646,1721424633943,-5101.38493257,0.00031,10]
[332676647,1721424633955,-850.40212826,0.00031,10]
[332676659,1721424638110,-1620.467466,0.00013297,2]
[332676663,1721424638284,-10439.41291781,0.00013297,2]
[332676664,1721424638295,-827.42869872,0.00013297,2]
[332676666,1721424638436,-660.96571054,0.00013297,2]
[332676699,1721424640209,-11737.43267709,0.00013297,2]
[332676701,1721424640220,-2300.59352164,0.0002636,2]
[332676703,1721424640230,-1829.0,0.0002792,2]
[332676705,1721424640241,-850.40212826,0.00029762,2]
[332676707,1721424640251,-286.20532406,0.00030999,2]
[332676739,1721424640567,-396069.588981,0.00031,10]
[332676742,1721424640598,-793735.82543645,0.00031,10]
[332676745,1721424640655,-2434.23385227,0.00030999,2]
[332676746,1721424640665,-172891.42810772,0.00031,10]
[332676747,1721424640680,-667.11820125,0.00031,10]
[332676748,1721424640691,-703.985,0.00031,10]
[332676749,1721424640703,-339.49000002,0.00031,10]
[332676750,1721424640716,-770.40062877,0.00031,10]
[332677033,1721424644019,-10845.9185728,0.00031,10]
[332677034,1721424644031,-1306.58130079,0.00031,10]
[332677035,1721424644044,-1149.07228572,0.00031,10]
[332677036,1721424644056,-2314.14804842,0.00031,10]
[332677037,1721424644068,-5046.21085056,0.00031,10]
[332677038,1721424644081,-3767.59533793,0.00031,10]
[332677039,1721424644136,-8081.28438641,0.00031,10]
[332677040,1721424644148,-2383.28505014,0.00031,10]
[332677052,1721424646386,-1937.73207368,0.000309,2]
[332677053,1721424646395,-1217.11692614,0.00030999,2]
[332677054,1721424646404,-292.0,0.00031,5]
[332677055,1721424646414,-8329.05580018,0.00031,10]
[332677056,1721424646425,-715.71172476,0.00031,10]
[332677057,1721424646475,-416.4960059,0.000309,15]
[332677058,1721424646980,-95.3735889,0.000309,15]
[332677059,1721424646991,-32242.61342806,0.00031,10]
[332677060,1721424647002,-4919.07120143,0.00031,10]
[332677109,1721425833845,-795.57001,0.0001331,2]
[332677110,1721425833897,-700.0,0.0001331,2]
[332677111,1721425833931,-250.0,0.0001331,2]
[332677112,1721425833942,-1090.70118064,0.0001331,2]
[332677113,1721425833953,-534.87186629,0.00015,2]
[332677114,1721425833967,-163.63227389,0.00015,2]
[332677115,1721425833978,-150.0,0.00015,2]
[332677116,1721425833988,-200.0,0.00017,2]
[332677117,1721425833998,-300.0,0.00017807,2]
[332677118,1721425834008,-390.00613675,0.000182,2]
[332677119,1721425834019,-36.99386325,0.000182,2]
[332677120,1721425834028,-250.0,0.00019,2]
[332677121,1721425834038,-420.0,0.00019433,2]
[332677122,1721425834048,-300.0,0.00021,2]
[332677123,1721425834057,-154.36,0.00021644,2]
[332677124,1721425834067,-500.0,0.0002232,2]
[332677125,1721425834077,-200.0,0.0002232,2]
[332677126,1721425834086,-350.0,0.00023,2]
[332677127,1721425834096,-303.37279173,0.00024989,2]
[332677128,1721425834108,-218.07625066,0.00024989,2]
[332677129,1721425834118,-23063.87299541,0.00024999,2]
[332677130,1721425834130,-493.5770007,0.00024999,2]
[332677131,1721425834141,-264.82796935,0.00024999,2]
[332677132,1721425834157,-471.98453587,0.00024999,2]
[332677133,1721425834169,-991.44496883,0.00024999,2]
[332677134,1721425834179,-400.0,0.00025,2]
[332677135,1721425834190,-246.28,0.00026062,2]
[332677136,1721425834200,-250.0,0.00026632,2]
[332677137,1721425834209,-227.43774807,0.00026828,5]
[332677138,1721425834220,-1000.0,0.00026895,120]
[332677139,1721425834230,-450.0,0.00027,2]
[332677140,1721425834240,-150.0,0.00027,2]
[332677141,1721425834250,-1500.0,0.000274,2]
[332677142,1721425834260,-250.0,0.00027431,2]
[332677143,1721425834270,-182.67,0.00027835,2]
[332677144,1721425834281,-252.45,0.0002788,2]
[332677145,1721425834291,-366.80013867,0.00027999,2]
[332677146,1721425834300,-246.28,0.00028325,2]
[332677147,1721425834311,-153.66948282,0.00028943,2]
[332677148,1721425834321,-500.0,0.00029,2]
[332677149,1721425834331,-180.0,0.00029747,2]
[332677150,1721425834340,-524.91121126,0.0002981,2]
[332677152,1721425834350,-154.36,0.00029883,2]
[332677154,1721425834360,-300.0,0.000304,11]
[332677155,1721425834370,-700.0,0.000305,11]
[332677156,1721425834380,-246.28,0.00030589,2]
[332677157,1721425834390,-1100.0,0.000306,11]
[332677158,1721425834400,-5911.08880836,0.0003069,2]
[332677160,1721425834413,-544.57707993,0.0003069,2]
[332677161,1721425834425,-418.54007673,0.0003069,2]
[332677162,1721425834442,-837.82808505,0.0003069,2]
[332677163,1721425834454,-811.05669613,0.0003069,2]
[332677164,1721425834484,-1941.12504729,0.0003069,2]
[332677165,1721425834495,-2467.26092252,0.0003069,2]
[332677166,1721425834507,-3332.62267,0.0003069,2]
[332677167,1721425834519,-5138.90061399,0.0003069,2]
[332677168,1721425834528,-1500.0,0.000307,11]
[332677169,1721425834538,-500.0,0.00030751,2]
[332677170,1721425834548,-1900.0,0.000308,11]
[332677171,1721425834558,-1493.7498107,0.0003089,15]
[332677172,1721425834568,-198.09094505,0.0003089,2]
[332677173,1721425834578,-3505.662,0.0003089,2]
[332677174,1721425834589,-2756.7848,0.0003089,2]
[332677175,1721425834599,-5000.0,0.000309,2]
[332677176,1721425834609,-162.78248961,0.000309,2]
[332677177,1721425834619,-1000.0,0.000309,2]
[332677178,1721425834628,-300.0,0.000309,11]
[332677179,1721425834641,-1291.82138246,0.000309,2]
[332677180,1721425834652,-182.21011378,0.000309,2]
[332677181,1721425834661,-493.01378443,0.000309,15]
[332677182,1721425834670,-220.02,0.00030904,3]
[332677183,1721425834679,-151.072006,0.00030948,101]
[332677184,1721425834691,-419.88,0.00030959,2]
[332677185,1721425834700,-419.88,0.00030959,2]
[332677186,1721425834710,-416.77,0.00030959,2]
[332677187,1721425834721,-1361.4603469,0.0003097,2]
[332677188,1721425834732,-207.56,0.00030985,10]
[332677189,1721425834742,-5053.0,0.00030995,3]
[332677190,1721425834751,-5053.0,0.00030995,3]
[332677191,1721425834761,-5053.0,0.00030995,3]
[332677192,1721425834771,-5053.0,0.00030995,3]
[332677193,1721425834781,-5053.0,0.00030995,3]
[332677194,1721425834791,-5053.0,0.00030995,3]
[332677195,1721425834801,-5053.0,0.00030995,3]
[332677196,1721425834811,-5053.0,0.00030995,3]
[332677197,1721425834821,-5053.0,0.00030995,3]
[332677198,1721425834831,-5053.0,0.00030995,3]
[332677199,1721425834841,-299.14421511,0.00030999,2]
[332677200,1721425834850,-608.55846307,0.00030999,2]
[332677201,1721425834860,-300.0,0.00030999,10]
[332677202,1721425834871,-269.0,0.00031,5]
[332677203,1721425834880,-276505.98902621,0.00031,10]
[332677204,1721425834893,-3457.28948995,0.00031,10]
[332677205,1721425834904,-53730.6,0.00031,10]
[332677206,1721425834915,-6392.78316401,0.00031,10]
[332677207,1721425834928,-46218.61985079,0.00031,10]
[332677208,1721425834939,-1625487.06018817,0.00031,10]
[332677209,1721425834951,-418.9295176,0.00031,10]
[332677210,1721425834963,-302.0,0.00031,10]
[332677211,1721425834984,-3421.26789501,0.00031,10]
[332677212,1721425834996,-666.42,0.00031,10]
[332677213,1721425835010,-465.65120639,0.00031,10]
[332677214,1721425835022,-8440.40459557,0.00031,10]
[332677223,1721425839062,-623.44199861,0.00029136,2]
[332677225,1721425839118,-3396.04284698,0.00029136,2]
[332677226,1721425839130,-156.58477704,0.00029136,2]
[332677227,1721425839140,-268.53628757,0.00031,10]
[332677228,1721425839152,-451.15504761,0.00031,10]
[332677229,1721425839163,-287.49901582,0.00031,10]
[332677230,1721425839174,-26401.64566378,0.00031,10]
[332677231,1721425839193,-769.96443153,0.00031,10]
[332677232,1721425839204,-292.04521374,0.00031,10]
[332677233,1721425839216,-1097696.44513834,0.00031,10]
[332677234,1721425839229,-827.75998797,0.00031,10]
[332677235,1721425839240,-10299.29559822,0.00031,10]
[332677236,1721425839252,-1919.21378837,0.00031,10]
[332677237,1721425839263,-7533.09361916,0.00031,10]
[332677238,1721425839276,-884.28010879,0.00031,10]
[332677239,1721425839287,-311.184893,0.00031,10]
[332677240,1721425839305,-290.71423783,0.00031,10]
[332677241,1721425839321,-3146.7938,0.00031,10]
[332677242,1721425839332,-394.14575585,0.00031,10]
[332677243,1721425839348,-3778.34015739,0.00031,10]
[332677244,1721425839360,-771.84081205,0.00031,10]
[332677245,1721425839399,-1024.24294205,0.00031,10]
[332677246,1721425839411,-1848.69280149,0.00031,10]
[332677247,1721425839423,-766.67548089,0.00031,10]
[332677248,1721425839435,-833.69583873,0.00031,10]
[332677254,1721425840721,-304.27923153,0.00030999,2]
[332677255,1721425840730,-1522.55429234,0.00031,10]
[332677256,1721425840742,-1500.042676,0.00031,10]
[332677257,1721425840753,-13859.37145624,0.00031,10]
[332677258,1721425840779,-1804.47217148,0.00031,10]
[332677259,1721425840790,-3999.64712997,0.00031,10]
[332677260,1721425840808,-3792673.24399159,0.00031,10]
[332677261,1721425840817,-151.0,0.00031,2]
[332677262,1721425840827,-2255.1,0.00031,14]
[332677263,1721425840836,-355.59,0.00031,2]
[332677264,1721425840845,-366.82,0.00031,2]
[332677265,1721425840854,-175.63487927,0.00031,2]
[332677266,1721425840863,-182.67,0.00031314,2]
[332677267,1721425840872,-252.45,0.00031365,2]
[332677268,1721425840881,-1493.74981068,0.00031465,15]
[332677269,1721425840890,-2984.98693968,0.00031499,2]
[332677270,1721425840901,-42672.91173014,0.000315,2]
[332677271,1721425840910,-1500.0,0.000315,2]
[332677272,1721425840920,-493.01378434,0.00031504,15]
[332677273,1721425840930,-300.0,0.00031753,2]
[332677274,1721425840939,-419.88,0.00031863,2]
[332677275,1721425840948,-833.09,0.00031863,2]
[332677276,1721425840957,-419.88,0.00031863,2]
[332677277,1721425840967,-833.09,0.00031863,2]
[332677278,1721425840976,-419.88,0.00031863,2]
[332677279,1721425840985,-833.09,0.00031863,2]
[332677280,1721425840995,-419.88,0.00031863,2]
[332677281,1721425841004,-833.09,0.00031863,2]
[332677282,1721425841013,-419.88,0.00031863,2]
[332677283,1721425841023,-151.71560928,0.00031999,2]
[332677284,1721425841032,-150.0,0.00031999,2]
[332677285,1721425841042,-151.0,0.00032,2]
[332677286,1721425841051,-157.6720641,0.00032,120]
[332677287,1721425841061,-1493.74981068,0.0003204,15]
[332677288,1721425841070,-493.01378434,0.00032108,15]
[332677289,1721425841079,-836.07916282,0.0003247,4]
[332677290,1721425841088,-18617.144174,0.000325,5]
[332677291,1721425841099,-187.07755,0.00032564,7]
[332677292,1721425841108,-1493.74981068,0.00032615,15]
[332677293,1721425841118,-2255.1,0.000327,14]
[332677294,1721425841127,-355.59,0.000327,2]
[332677295,1721425841136,-493.01378434,0.00032713,15]
[332677296,1721425841146,-266.13594785,0.00032845,4]
[332677297,1721425841155,-246.28,0.00032853,2]
[332677298,1721425841164,-733.07971505,0.00032875,4]
[332677299,1721425841175,-1531.41,0.00032876,14]
[332677300,1721425841184,-765.08861567,0.000329,30]
[332677301,1721425841193,-366.82,0.000329,2]
[332677302,1721425841203,-201.0,0.00033,2]
[332677303,1721425841213,-668.87508,0.00033,7]
[332677304,1721425841222,-500.0,0.00033,2]
[332677305,1721425841232,-11700.0,0.00033,3]
[332677306,1721425841241,-150.695584,0.00033,2]
[332677307,1721425841251,-500.0,0.00033,120]
[332677308,1721425841260,-1012.94,0.00033,2]
[332677309,1721425841270,-1493.74981068,0.0003319,15]
[332677310,1721425841280,-1000.0,0.0003327,2]
[332677311,1721425841289,-493.01378434,0.00033317,15]
[332677312,1721425841299,-1065802.15981227,0.0003333,10]
[332677313,1721425841309,-1291.82138244,0.00033337,2]
[332677314,1721425841318,-182.21011377,0.00033337,2]
[332677315,1721425841327,-399.03,0.000335,31]
[332677316,1721425841336,-399.03,0.000335,31]
[332677317,1721425841345,-399.03,0.000335,31]
[332677318,1721425841354,-399.03,0.000335,31]
[332677319,1721425841364,-399.03,0.000335,31]
[332677320,1721425841374,-399.03,0.000335,31]
[332677321,1721425841383,-399.03,0.000335,31]
[332677322,1721425841393,-399.03,0.000335,31]
[332677323,1721425841403,-399.03,0.000335,31]
[332677324,1721425841413,-399.03,0.000335,31]
[332677325,1721425841422,-399.03,0.000335,31]
[332677326,1721425841430,-399.03,0.000335,31]
[332677327,1721425841439,-399.03,0.000335,31]
[332677328,1721425841449,-399.03,0.000335,31]
[332677329,1721425841458,-399.03,0.000335,31]
[332677330,1721425841467,-399.03,0.000335,31]
[332677331,1721425841477,-399.03,0.000335,31]
[332677332,1721425841486,-399.03,0.000335,31]
[332677333,1721425841495,-399.03,0.000335,31]
[332677334,1721425841504,-399.03,0.000335,31]
[332677335,1721425841514,-11860.0,0.000337,2]
[332677336,1721425841523,-988.15,0.00033753,2]
[332677337,1721425841532,-1493.74981068,0.00033764,15]
[332677338,1721425841541,-25000.0,0.000338,2]
[332677339,1721425841550,-300.0,0.000339,12]
[332677340,1721425841560,-493.01378434,0.00033921,15]
[332677341,1721425841570,-115055.82130114,0.00033987,120]
[332677342,1721425841580,-500.0,0.00034,120]
[332677343,1721425841591,-813.0,0.00034036,2]
[332677344,1721425841601,-1000.0,0.0003407,2]
[332677345,1721425841610,-690.77903402,0.0003407,2]
[332677346,1721425841620,-4506.72315838,0.000341,14]
[332677347,1721425841634,-760.11591725,0.000341,14]
[332677348,1721425841650,-401.71205352,0.000341,14]
[332677349,1721425841661,-355.59,0.000341,2]
[332677350,1721425841671,-1000.0,0.0003417,2]
[332677351,1721425841680,-1000.0,0.0003417,2]
[332677352,1721425841690,-1000.0,0.0003417,2]
[332677353,1721425841699,-1000.0,0.0003417,2]
[332677354,1721425841708,-209.40427688,0.0003417,2]
[332677355,1721425841722,-419.77238971,0.0003417,2]
[332677356,1721425841739,-370.82333341,0.0003417,2]
[332677357,1721425841748,-500.0,0.0003417,2]
[332677358,1721425841757,-500.0,0.0003417,2]
[332677359,1721425841768,-285.76187047,0.0003417,2]
[332677360,1721425841780,-214.23812953,0.0003417,2]
[332677361,1721425841790,-500.0,0.0003417,2]
[332677362,1721425841799,-500.0,0.0003417,2]
[332677363,1721425841809,-1600.0,0.00034178,31]
[332677364,1721425841818,-7967.37082446,0.0003418,2]
[332677365,1721425841829,-1216.15843688,0.0003418,2]
[332677366,1721425841844,-518.7823258,0.0003418,2]
[332677367,1721425841856,-457.06658257,0.0003418,2]
[332677368,1721425841867,-1819.20996264,0.0003418,2]
[332677369,1721425841878,-6347.26665407,0.0003418,2]
[332677370,1721425841890,-6161.1919003,0.0003418,2]
[332677371,1721425841900,-4406.4475,0.0003418,2]
[332677372,1721425841912,-3362.76802775,0.0003418,2]
[332677373,1721425841924,-317.08963934,0.0003418,2]
[332677384,1721425844102,-22103.86031125,0.0003418,2]
[332677385,1721425844115,-688.56235155,0.0003418,2]
[332677386,1721425844127,-1371.16970358,0.0003418,2]
[332677387,1721425844140,-1765.67955525,0.0003418,2]
[332677388,1721425844152,-1034.9576737,0.0003418,2]
[332677389,1721425844164,-6129.20921955,0.0003418,2]
[332677390,1721425844173,-117.30051643,0.000342,2]
[332677391,1721425844185,-249.51948357,0.000342,2]
[332677392,1721425844194,-161.0,0.000342,23]
[332677393,1721425844204,-399.03,0.000342,31]
[332677394,1721425844213,-399.03,0.000342,31]
[332677395,1721425844223,-399.03,0.000342,31]
[332677396,1721425844233,-399.03,0.000342,31]
[332677397,1721425844243,-399.03,0.000342,31]
[332677398,1721425844252,-341.18529829,0.000342,31]
[332677399,1721425844262,-57.84470171,0.000342,31]
[332677400,1721425844271,-399.03,0.000342,31]
[332677401,1721425844281,-399.03,0.000342,31]
[332677402,1721425844290,-399.03,0.000342,31]
[332677403,1721425844299,-399.03,0.000342,31]
[332677404,1721425844309,-399.03,0.000342,31]
[332677405,1721425844319,-399.03,0.000342,31]
[332677406,1721425844328,-399.03,0.000342,31]
[332677407,1721425844339,-500.0,0.00034222,14]
[332677408,1721425844349,-1166.45,0.00034234,30]
[332677409,1721425844358,-589.82529829,0.00034234,30]
[332677410,1721425844370,-576.62470171,0.00034234,30]
[332677411,1721425844379,-416.94174313,0.00034234,30]
[332677412,1721425844391,-749.50825687,0.00034234,30]
[332677413,1721425844401,-550.14192113,0.00034234,30]
[332677414,1721425844412,-616.30807887,0.00034234,30]
[332677415,1721425844422,-514.98862062,0.00034236,14]
[332677416,1721425844432,-300.0,0.00034245,10]
[332677417,1721425844442,-500.0,0.00034246,14]
[332677418,1721425844451,-500.0,0.00034246,14]
[332677419,1721425844460,-500.0,0.00034246,14]
[332677420,1721425844470,-500.0,0.00034246,14]
[332677421,1721425844480,-500.0,0.00034246,14]
[332677422,1721425844490,-500.0,0.00034246,14]
[332677423,1721425844500,-500.0,0.00034246,14]
[332677424,1721425844509,-680.3,0.00034246,14]
[332677425,1721425844518,-500.0,0.00034246,14]
[332677426,1721425844527,-500.0,0.00034246,14]
[332677427,1721425844536,-500.0,0.00034246,14]
[332677428,1721425844546,-500.0,0.00034246,14]
[332677429,1721425844555,-530.84,0.00034246,14]
[332677430,1721425844564,-500.0,0.00034246,14]
[332677431,1721425844574,-500.52129787,0.00034246,14]
[332677432,1721425844583,-500.0,0.00034246,14]
[332677433,1721425844592,-500.0,0.00034246,14]
[332677434,1721425844602,-151.0,0.00034246,7]
[332677435,1721425844611,-152.120017,0.00034246,7]
[332677436,1721425844620,-500.0,0.00034246,14]
[332677437,1721425844630,-500.0,0.00034246,14]
[332677438,1721425844640,-500.0,0.00034246,14]
[332677439,1721425844652,-500.0,0.00034246,14]
[332677440,1721425844662,-771.9,0.00034246,14]
[332677441,1721425844671,-500.0,0.00034246,14]
[332677442,1721425844680,-500.0,0.00034246,14]
[332677443,1721425844689,-197.475629,0.00034246,7]
[332677444,1721425844700,-500.0,0.00034246,14]
[332677445,1721425844709,-500.0,0.00034246,14]
[332677446,1721425844718,-500.0,0.00034246,14]
[332677447,1721425844730,-500.0,0.00034246,14]
[332677448,1721425844740,-500.0,0.00034246,14]
[332677449,1721425844750,-500.0,0.00034246,14]
[332677450,1721425844759,-500.0,0.00034246,14]
[332677451,1721425844769,-500.0,0.00034246,14]
[332677452,1721425844778,-534.83,0.00034246,14]
[332677453,1721425844787,-500.0,0.00034246,14]
[332677454,1721425844796,-151.0,0.00034246,7]
[332677455,1721425844806,-500.0,0.00034246,14]
[332677456,1721425844815,-857.3,0.00034246,14]
[332677457,1721425844825,-500.0,0.00034246,14]
[332677458,1721425844834,-500.0,0.00034246,14]
[332677459,1721425844843,-151.0,0.00034246,7]
[332677460,1721425844852,-151.0,0.00034246,7]
[332677461,1721425844862,-500.0,0.00034246,14]
[332677462,1721425844871,-625.2,0.00034246,14]
[332677463,1721425844881,-500.0,0.00034246,14]
[332677464,1721425844891,-500.0,0.00034246,14]
[332677465,1721425844901,-589.56,0.00034246,14]
[332677466,1721425844911,-580.38,0.00034246,14]
[332677467,1721425844921,-500.0,0.00034246,14]
[332677468,1721425844931,-500.0,0.00034246,14]
[332677469,1721425844941,-500.0,0.00034246,14]
[332677470,1721425844951,-709.52,0.00034246,14]
[332677471,1721425844961,-500.0,0.00034246,14]
[332677472,1721425844971,-152.165008,0.00034246,7]
[332677473,1721425844981,-751.64,0.00034246,14]
[332677474,1721425844992,-500.0,0.00034246,14]
[332677475,1721425845001,-500.0,0.00034246,14]
[332677476,1721425845014,-528.12,0.00034246,14]
[332677477,1721425845023,-740.58,0.00034246,14]